bitfinex-derivatives/quotes_SOLF0:USTF0_20250105
["timestamp","ask_amount","ask_price","bid_price","bid_amount"]
[1736065051292,1.16225089,215.13,215.09,1.4168]
[1736065051592,1.16225089,215.12,215.09,1.4168]
[1736065051796,1.16225089,215.11,215.09,1.4168]
[1736065051993,2.3242,215.16,215.09,1.4168]
[1736065052295,1.16241428,215.15,215.09,1.4168]
[1736065052496,1.16241428,215.14,215.09,1.4168]
[1736065052696,1.16241428,215.13,215.09,1.4168]
[1736065053006,1.16241428,215.12,215.09,1.4168]
[1736065053303,11.40859491,215.19,215.09,1.4168]
[1736065053504,3.48641258,215.18,215.09,3.7417]
[1736065053704,1.16241258,215.17,215.09,3.7417]
[1736065053900,2.324,215.18,215.09,3.7417]
[1736065054104,1.16241234,215.17,215.09,3.7417]
[1736065054302,1.16241234,215.16,215.1,2.3248]
[1736065054508,1.16241234,215.15,215.1,2.3248]
[1736065054805,1.16241234,215.14,215.09,12.82539491]
[1736065055013,2.68,215.19,215.09,12.82539491]
[1736065055305,1.16226646,215.18,215.11,2.3246]
[1736065055506,1.16226646,215.18,215.09,12.82539491]
[1736065055507,1.16226646,215.17,215.09,12.82539491]
[1736065055702,2.68,215.19,215.09,12.82539491]
[1736065055703,1.16226646,215.16,215.09,1.4168]
[1736065056007,2.68,215.19,215.09,12.82539491]
[1736065056203,1.16228954,215.18,215.09,12.82539491]
[1736065056402,1.16228954,215.17,215.09,12.82539491]
[1736065056603,1.16228954,215.16,215.09,12.82539491]
[1736065056804,1.16228954,215.15,215.09,12.82539491]
[1736065057104,1.16228978,215.14,215.09,12.82539491]
[1736065057407,2.68,215.19,215.12,2.3245]
[1736065057704,3.48628978,215.18,215.09,12.82539491]
[1736065057906,1.16228978,215.17,215.09,12.82539491]
[1736065058207,2.324,215.18,215.09,12.82539491]
[1736065058208,1.16228978,215.16,215.09,12.82539491]
[1736065058406,1.16228978,215.15,215.09,12.82539491]
[1736065058599,1.16228978,215.14,215.09,12.82539491]
[1736065058805,2.324,215.18,215.09,12.82539491]
[1736065059108,1.16229256,215.17,215.09,12.82539491]
[1736065059306,1.16229256,215.16,215.12,2.3246]
[1736065059507,1.16229256,215.15,215.12,2.3246]
[1736065059806,1.16229256,215.14,215.12,2.3246]
[1736065060009,2.68,215.19,215.12,2.3246]
[1736065060207,1.16227379,215.18,215.12,2.3246]
[1736065060404,1.16227379,215.17,215.12,2.3246]
[1736065060704,1.16227379,215.16,215.12,2.3246]
[1736065060899,1.16227379,215.15,215.12,2.3246]
[1736065061105,1.16227379,215.14,215.12,2.3246]
[1736065061305,1.1622894,215.13,215.12,2.3246]
[1736065063212,1.16235031,215.13,215.12,2.3246]
[1736065063606,5.0038,215.19,215.12,2.3246]
[1736065063811,1.16233949,215.18,215.12,2.3246]
[1736065064004,1.16233949,215.17,215.12,2.3246]
[1736065064206,1.16233949,215.16,215.12,2.3246]
[1736065064406,1.16233949,215.15,215.12,2.3246]
[1736065064605,1.16233949,215.14,215.12,2.3246]
[1736065064906,1.16233949,215.13,215.12,2.3246]
[1736065065313,1.16233949,215.13,215.09,1.4168]
[1736065065314,1.16235224,215.13,215.09,1.4168]
[1736065065502,1.16235224,215.12,215.09,1.4168]
[1736065065707,1.16235224,215.11,215.09,1.4168]
[1736065065909,1.16235224,215.1,215.09,1.4168]
[1736065066414,1.16235224,215.1,215.09,3.7417]
[1736065066415,1.16246027,215.1,215.09,3.7417]
[1736065066607,1.16246027,215.1,215.09,2.3249]
[1736065067914,1.16246027,215.1,215.06,11.40859491]
[1736065067915,1.16246027,215.1,215.06,2.3252]
[1736065068111,1.16246027,215.09,215.06,2.3252]
[1736065068417,1.16246027,215.08,215.06,2.3252]
[1736065068617,1.16246027,215.07,215.06,2.3252]
[1736065068812,2.68,215.14,215.08,2.3249]
[1736065069018,11.40859491,215.18,215.06,11.40859491]
[1736065069019,1.16252034,215.13,215.06,11.40859491]
[1736065069223,2.68,215.16,215.06,11.40859491]
[1736065069424,1.16245419,215.15,215.11,2.3246]
[1736065069720,1.16245419,215.14,215.11,2.3246]
[1736065070023,1.16245419,215.14,215.06,11.40859491]
[1736065070024,1.16245419,215.13,215.03,1.4213]
[1736065070322,2.68,215.17,215.11,7.30244414]
[1736065070323,1.16234472,215.12,215.11,7.30244414]
[1736065071026,1.16234472,215.12,215.03,1.4213]
[1736065071228,8.46478886,215.11,215.04,7.30244414]
[1736065071425,3.48714472,215.1,215.04,7.30244414]
[1736065071622,8.46478886,215.09,215.02,9.62804414]
[1736065071817,1.16234472,215.08,214.99,1.5151]
[1736065072027,8.46478886,215.07,214.99,1.5151]
[1736065072222,11.14478886,215.07,214.97,6.40977437]
[1736065072421,7.30244414,215.05,214.98,7.30244414]
[1736065072623,1.16234472,215.04,214.98,9.62854414]
[1736065072830,1.16234472,215.03,214.98,9.62854414]
[1736065073029,1.16234472,215.02,214.98,7.30244414]
[1736065073224,7.30244414,215.06,215.0,7.30244414]
[1736065073529,1.16282,215.05,215.0,7.30244414]
[1736065073831,1.16282,215.04,215.0,2.3258]
[1736065074126,1.16282,215.03,215.01,7.30244414]
[1736065074327,1.16282,215.02,214.97,11.42077064]
[1736065074527,2.68,215.08,214.97,11.42077064]
[1736065074728,1.16286147,215.07,214.97,11.42077064]
[1736065074921,1.16286147,215.06,215.0,11.42077064]
[1736065075123,1.16286147,215.05,215.0,2.68]
[1736065075320,1.16286147,215.04,215.03,2.3256]
[1736065075523,5.0045,215.13,215.02,11.42077064]
[1736065075720,1.16262214,215.12,215.02,11.42077064]
[1736065075924,1.16262214,215.11,215.02,11.42077064]
[1736065076124,5.0045,215.13,215.02,11.42077064]
[1736065076125,1.16262214,215.1,215.04,2.3254]
[1736065076323,1.16262214,215.09,215.02,11.42077064]
[1736065076524,1.4884,215.25,215.02,11.42077064]
[1736065076525,1.16262214,215.08,215.02,11.42077064]
[1736065076728,1.16262214,215.07,215.04,11.42077064]
[1736065076927,2.68,215.14,215.02,2.68]
[1736065077127,2.3246,215.12,215.04,2.3254]
[1736065077328,1.16258954,215.11,215.04,2.3254]
[1736065077630,3.48738954,215.1,215.03,13.74627064]
[1736065077822,1.16258954,215.09,215.03,13.74627064]
[1736065078033,1.16258954,215.08,215.03,13.74627064]
[1736065078326,2.68,215.14,214.95,27.9653975]
[1736065078327,1.16267562,215.07,214.95,27.9653975]
[1736065078529,3.84267562,215.06,214.95,25.6390975]
[1736065078730,1.16267562,215.05,214.97,11.42077064]
[1736065079035,2.68,215.06,214.97,11.42077064]
[1736065079036,1.16267562,215.04,214.97,11.42077064]
[1736065079230,1.16267562,215.03,214.97,11.42077064]
[1736065079432,1.16267562,215.02,214.99,2.326]
[1736065079628,2.3253,215.06,214.99,2.326]
[1736065079936,1.16282471,215.05,214.97,11.42077064]
[1736065080235,2.68,215.07,214.97,11.42077064]
[1736065080236,1.16282471,215.04,214.97,11.42077064]
[1736065080431,1.16282471,215.03,214.97,11.42077064]
[1736065080637,1.16282471,215.02,214.97,11.42077064]
[1736065080831,2.68,215.07,214.97,11.42077064]
[1736065081032,1.16285682,215.06,214.97,11.42077064]
[1736065081232,1.16285682,215.05,214.97,11.42077064]
[1736065081533,1.16285682,215.04,214.99,2.326]
[1736065081736,2.68,215.1,215.0,11.42077064]
[1736065082034,1.16282645,215.09,215.0,11.42077064]
[1736065082226,1.16282645,215.08,215.0,11.42077064]
[1736065082425,1.16282645,215.07,214.96,5.6066]
[1736065082627,1.16282645,215.06,214.97,11.42077064]
[1736065082825,1.16282645,215.05,214.97,11.42077064]
[1736065083024,1.16282645,215.04,214.97,11.42077064]
[1736065083225,1.16282645,215.03,214.98,2.326]
[1736065083437,2.3252,215.07,214.97,11.42077064]
[1736065083638,1.16278482,215.06,214.97,11.42077064]
[1736065083837,1.16278482,215.05,215.02,2.3256]
[1736065084038,1.16278482,215.04,215.02,2.3256]
[1736065084237,5.005,215.09,215.02,2.3256]
[1736065084537,1.16274532,215.08,215.03,2.3255]
[1736065084728,1.16274532,215.07,215.0,11.42077064]
[1736065084932,1.16274532,215.06,215.0,11.42077064]
[1736065085132,1.16274532,215.05,215.01,2.3257]
[1736065085327,1.16272962,215.04,215.0,11.42077064]
[1736065085632,2.68,215.09,215.0,11.42077064]
[1736065085829,1.16277213,215.08,215.0,11.42077064]
[1736065086033,1.16277213,215.07,215.0,11.42077064]
[1736065086228,1.16277213,215.06,215.0,11.42077064]
[1736065086435,1.16277213,215.05,215.01,2.3257]
[1736065086638,1.16280382,215.04,215.0,11.42077064]
[1736065086829,1.16280382,215.03,215.0,11.42077064]
[1736065087033,2.68,215.09,215.0,11.42077064]
[1736065087339,1.1627821,215.08,215.0,11.42077064]
[1736065087538,1.1627821,215.07,215.0,11.42077064]
[1736065087739,1.1627821,215.06,215.0,11.42077064]
[1736065087934,1.1627821,215.05,215.0,11.42077064]
[1736065088129,1.1627821,215.04,214.97,11.42077064]
[1736065088328,1.1627821,215.03,214.97,11.42077064]
[1736065088533,1.1627821,215.02,214.97,11.42077064]
[1736065088835,1.1627821,215.01,214.97,11.42077064]
[1736065089033,1.1627821,215.0,214.97,11.42077064]
[1736065089337,5.0055,215.04,214.97,11.42077064]
[1736065089535,1.16291936,215.03,214.97,11.42077064]
[1736065089834,1.16291936,215.03,214.96,2.9266]
[1736065089835,1.16291936,215.02,214.96,2.9266]
[1736065090134,1.1629321,215.01,214.96,2.9266]
[1736065090332,1.1629321,215.0,214.96,2.9266]
[1736065090540,2.3257,215.02,214.96,5.2529]
[1736065090754,1.16293117,215.01,214.96,5.2529]
[1736065090934,1.16293117,215.0,214.96,5.2529]
[1736065091135,2.68,215.05,214.99,2.326]
[1736065091337,1.16292067,215.04,214.99,2.326]
[1736065091539,1.16292067,215.03,214.99,2.326]
[1736065091833,1.16291698,215.02,214.99,2.326]
[1736065092041,2.68,215.05,214.99,2.326]
[1736065092234,1.16287803,215.04,214.99,2.326]
[1736065092442,1.16287803,215.03,214.99,2.326]
[1736065092637,1.16287914,215.02,214.99,2.326]
[1736065092830,2.68,215.05,214.99,2.326]
[1736065093033,1.16287308,215.04,214.99,2.326]
[1736065093236,1.16287308,215.03,214.99,2.326]
[1736065093437,1.16287308,215.02,214.99,2.326]
[1736065093637,2.68,215.05,214.96,2.9266]
[1736065093837,1.16287308,215.04,214.98,11.42077064]
[1736065094041,1.16287308,215.03,214.98,11.42077064]
[1736065094341,2.8,215.09,215.04,2.3254]
[1736065094543,1.16278856,215.08,215.04,2.3254]
[1736065094742,1.16278856,215.07,215.02,7.30711404]
[1736065094944,1.16278856,215.06,215.05,9.63241404]
[1736065095645,2.8,215.13,215.05,9.63241404]
[1736065095841,1.16261536,215.12,215.06,2.3252]
[1736065096142,1.16261536,215.11,215.06,2.3252]
[1736065096345,1.16261536,215.1,215.06,2.3252]
[1736065096644,1.16261536,215.09,215.06,2.3252]
[1736065096845,1.16261536,215.08,215.06,2.3252]
[1736065097138,1.16261536,215.07,215.05,7.30711404]
[1736065097341,1.16263986,215.06,215.05,7.30711404]
[1736065097548,1.16263381,215.06,215.05,7.30711404]
[1736065098248,1.16263388,215.06,215.05,7.30711404]
[1736065098443,1.16263388,215.06,215.04,2.3253]
[1736065098638,2.3248,215.1,215.04,2.3253]
[1736065098843,1.16263436,215.09,215.04,2.3253]
[1736065099147,2.3247,215.12,215.05,7.30711404]
[1736065099443,1.16260508,215.11,215.05,7.30711404]
[1736065099646,1.16260508,215.1,215.05,7.30711404]
[1736065099848,1.16260508,215.09,215.05,7.30711404]
[1736065100040,1.16260508,215.08,215.07,7.30711404]
[1736065100945,11.08691404,215.15,215.09,2.3249]
[1736065101340,1.16251384,215.14,215.09,2.3249]
[1736065101547,1.16251384,215.13,215.09,2.3249]
[1736065101746,1.16251384,215.12,215.09,2.3249]
[1736065101946,1.16251384,215.11,215.09,9.63201404]
[1736065102245,10.10711404,215.17,215.09,7.30711404]
[1736065102443,1.16240184,215.16,215.11,7.30711404]
[1736065102643,1.16240184,215.15,215.12,2.3246]
[1736065102843,1.16240184,215.14,215.12,2.3246]
[1736065103049,7.30711404,215.17,215.12,2.3246]
[1736065103050,1.16240184,215.13,215.12,2.3246]
[1736065104047,1.16240184,215.13,215.11,9.63181404]
[1736065104248,2.8,215.21,215.11,11.40620601]
[1736065104552,1.16220432,215.2,215.11,11.40620601]
[1736065104750,2.8,215.21,215.11,11.40620601]
[1736065104943,1.16223958,215.2,215.14,2.3244]
[1736065105145,1.16223958,215.19,215.14,2.3244]
[1736065105342,1.16223958,215.18,215.14,2.3244]
[1736065105557,1.16223958,215.17,215.15,2.3242]
[1736065105846,1.16223958,215.16,215.15,2.3242]
[1736065106047,2.8,215.27,215.14,14.23500601]
[1736065106252,2.8,215.27,215.17,11.40620601]
[1736065106653,5.123,215.27,215.2,2.3237]
[1736065107044,2.3232,215.25,215.17,11.40620601]
[1736065107553,14.20620601,215.27,215.14,14.23500601]
[1736065107944,2.3234,215.23,215.16,2.3241]
[1736065108149,14.20620601,215.27,215.14,14.23500601]
[1736065108552,11.40620601,215.24,215.14,2.8288]
[1736065109054,2.3238,215.2,215.14,5.1532]
[1736065109453,2.3238,215.2,215.14,2.3244]
[1736065111146,2.8,215.22,215.13,5.1245]
[1736065111147,2.3239,215.19,215.13,5.1245]
[1736065111950,11.40620601,215.21,215.08,14.20620601]
[1736065113151,11.40620601,215.18,215.06,2.9119]
[1736065113455,11.40620601,215.18,215.06,5.7119]
[1736065113657,2.8,215.17,215.06,5.7119]
[1736065114154,2.8,215.17,215.06,2.9119]
[1736065114551,2.3244,215.14,215.08,2.325]
[1736065114753,11.40620601,215.15,215.02,11.40620601]
[1736065115154,11.40620601,215.15,214.99,11.40620601]
[1736065115353,11.40620601,215.12,214.99,11.40620601]
[1736065115552,2.8,215.11,214.99,11.40620601]
[1736065115755,2.8,215.11,215.01,2.3257]
[1736065115756,2.3251,215.08,215.01,2.3257]
[1736065117053,2.3249,215.1,215.02,2.3256]
[1736065117259,2.3249,215.1,214.99,11.40620601]
[1736065117958,3.48760628,215.09,215.02,2.3257]
[1736065118155,1.16270628,215.08,215.02,2.3257]
[1736065118352,2.8,215.11,214.99,11.40620601]
[1736065118353,1.16270628,215.07,214.99,11.40620601]
[1736065118556,1.16270628,215.06,214.99,11.40620601]
[1736065118759,2.3251,215.07,215.0,2.3258]
[1736065118955,1.16276617,215.06,215.0,2.3258]
[1736065119156,2.8,215.11,214.98,2.9036]
[1736065119356,1.16277557,215.1,214.98,5.2296]
[1736065119559,1.16277557,215.09,214.98,5.2296]
[1736065119860,3.48787557,215.08,215.0,2.3259]
[1736065120056,2.3251,215.08,215.0,2.3259]
[1736065120259,1.16277581,215.07,215.0,2.3259]
[1736065120459,1.16277581,215.06,215.0,2.3259]
[1736065120661,2.3251,215.07,215.0,2.3259]
[1736065120861,1.16277023,215.06,215.0,2.3259]
[1736065121055,2.3251,215.07,215.0,2.3259]
[1736065121256,1.16277023,215.06,215.0,2.3259]
[1736065121455,2.3251,215.07,215.0,2.3259]
[1736065121661,1.16277037,215.06,215.0,2.3259]
[1736065121861,1.16277037,215.05,215.0,2.3259]
[1736065122161,2.3251,215.07,215.0,2.3259]
[1736065122362,1.1627766,215.06,215.0,2.3259]
[1736065122552,1.1627766,215.05,215.0,2.3259]
[1736065122758,2.3251,215.07,215.0,2.3259]
[1736065123056,1.1627766,215.06,215.0,2.3259]
[1736065123256,2.3251,215.07,215.0,2.3259]
[1736065123454,1.1627766,215.06,215.02,2.3256]
[1736065123658,2.3248,215.1,215.02,2.3256]
[1736065123860,1.16276468,215.09,214.99,11.40620601]
[1736065124163,1.16276468,215.08,214.99,11.40620601]
[1736065124364,1.16276468,215.07,215.04,2.3254]
[1736065124562,1.16276468,215.06,215.04,2.3254]
[1736065124765,2.8,215.11,215.04,2.3254]
[1736065124964,1.16268045,215.1,215.04,2.3254]
[1736065125164,1.16268045,215.09,215.04,2.3254]
[1736065125364,1.16268045,215.08,215.04,2.3254]
[1736065125564,1.16268045,215.07,215.04,2.3254]
[1736065125765,2.3247,215.12,215.05,2.3253]
[1736065125962,1.16263878,215.11,215.05,2.3253]
[1736065126163,3.48753878,215.1,215.02,14.20620601]
[1736065126363,1.16268294,215.09,214.99,11.40620601]
[1736065126564,1.16268294,215.08,214.99,11.40620601]
[1736065126863,2.8,215.09,214.99,11.40620601]
[1736065127165,1.16281368,215.08,214.99,11.40620601]
[1736065127361,1.16281368,215.07,214.99,11.40620601]
[1736065127561,3.48811368,215.06,214.99,11.40620601]
[1736065127760,1.16281368,215.05,214.99,11.40620601]
[1736065127965,1.16281368,215.04,214.99,11.40620601]
[1736065128267,2.8,215.09,214.98,2.9036]
[1736065128768,1.16287853,215.08,214.98,2.9036]
[1736065128966,1.16287853,215.07,214.98,2.9036]
[1736065129264,1.16287853,215.06,214.98,2.9036]
[1736065129462,3.48827853,215.05,214.98,5.2297]
[1736065129664,1.16287853,215.04,214.98,5.2297]
[1736065129866,1.16287853,215.03,214.98,5.2297]
[1736065130066,2.3254,215.05,214.98,5.2297]
[1736065130667,1.16287275,215.04,214.98,5.2297]
[1736065130866,1.16287275,215.03,214.98,5.2297]
[1736065131067,2.3254,215.05,214.98,5.2297]
[1736065131269,1.16287629,215.04,214.98,5.2297]
[1736065131465,1.16287629,215.03,214.98,5.2297]
[1736065131773,2.3254,215.05,214.98,5.2297]
[1736065132068,1.16287629,215.04,214.98,5.2297]
[1736065132260,1.16287629,215.03,214.98,5.2297]
[1736065132464,2.3254,215.05,214.98,5.2297]
[1736065132671,1.16287629,215.04,214.98,5.2297]
[1736065132865,1.16287629,215.03,214.98,5.2297]
[1736065133167,2.3254,215.05,214.98,5.2297]
[1736065133370,1.16287629,215.04,214.98,5.2297]
[1736065133567,1.16287629,215.03,214.98,5.2297]
[1736065133769,2.3254,215.05,214.98,5.2297]
[1736065133967,1.16289543,215.04,214.96,13.73240601]
[1736065134277,1.16289543,215.03,214.96,2.3262]
[1736065134568,1.16289543,215.02,214.96,2.3262]
[1736065134761,2.3257,215.02,214.96,2.3262]
[1736065134963,1.16296323,215.01,214.94,5.1264]
[1736065135262,1.16304361,215.0,214.94,2.3264]
[1736065135468,2.3261,214.98,214.91,2.8904]
[1736065135767,1.16318383,214.97,214.86,17.81598038]
[1736065135972,1.16318383,214.96,214.86,17.81598038]
[1736065136260,11.40620601,214.98,214.86,6.40977437]
[1736065136465,1.16326012,214.97,214.86,6.40977437]
[1736065136665,1.16326012,214.96,214.86,6.40977437]
[1736065136873,12.87290601,214.98,214.86,2.3274]
[1736065136874,1.16326012,214.95,214.86,2.3274]
[1736065137068,3.96326012,214.94,214.86,2.3274]
[1736065137266,1.16341824,214.93,214.86,2.3274]
[1736065137469,5.1265,214.94,214.86,2.3274]
[1736065137975,11.40620601,214.9,214.8,2.328]
[1736065138165,3.96361067,214.89,214.77,12.86060601]
[1736065138361,1.16373275,214.88,214.78,2.3282]
[1736065138665,2.8,214.89,214.78,2.3282]
[1736065138861,1.16378222,214.88,214.78,2.3282]
[1736065139067,2.3276,214.85,214.77,12.86060601]
[1736065139262,4.2667,214.89,214.77,11.40620601]
[1736065139568,1.16382711,214.88,214.76,1.4305]
[1736065139762,4.2667,214.89,214.77,11.40620601]
[1736065140170,1.4667,214.89,214.8,11.40620601]
[1736065140373,4.2667,214.89,214.81,2.3279]
[1736065141961,4.2667,214.89,214.75,1.3738]
[1736065141962,6.5938,214.89,214.75,12.78000601]
[1736065142169,4.2667,214.89,214.78,11.40620601]
[1736065142776,4.2667,214.89,214.83,2.3277]
[1736065144675,4.2667,214.89,214.84,2.3276]
[1736065144869,2.8,214.89,214.84,2.3276]
[1736065145073,2.8,214.89,214.78,11.40620601]
[1736065145378,14.20620601,214.9,214.78,11.40620601]
[1736065145579,11.40620601,214.87,214.75,1.3738]
[1736065146080,11.40620601,214.87,214.79,2.3281]
[1736065146976,2.8,214.86,214.79,2.3281]
[1736065147176,2.8,214.86,214.65,6.40977437]
[1736065147375,11.40620601,214.84,214.65,6.40977437]
[1736065147573,11.40620601,214.81,214.69,11.40620601]
[1736065147777,2.3278,214.82,214.74,2.3287]
[1736065147985,11.40620601,214.84,214.72,11.40620601]
[1736065148177,2.8,214.83,214.73,2.8734]
[1736065148381,2.8,214.83,214.77,2.3283]
[1736065148580,2.8,214.83,214.73,2.8734]
[1736065149177,11.40620601,214.87,214.78,2.3282]
[1736065149178,2.3275,214.85,214.78,2.3282]
[1736065149381,2.3275,214.85,214.73,2.8734]
[1736065149382,2.8,214.85,214.73,2.8734]
[1736065149983,5.1275,214.85,214.77,2.3283]
[1736065150585,2.3276,214.84,214.77,2.3283]
[1736065150881,2.8,214.85,214.78,2.3282]
[1736065151586,2.3276,214.84,214.77,2.3283]
[1736065151784,2.8,214.85,214.73,2.8]
[1736065151983,2.8,214.85,214.73,15.65040601]
[1736065152292,13.73360601,214.87,214.8,2.328]
[1736065152481,16.55360601,214.87,214.8,2.328]
[1736065152879,1.3895,214.89,214.81,2.3279]
[1736065152880,2.82,214.88,214.81,2.3279]
[1736065153383,1.3895,214.89,214.77,2.82]
[1736065153689,13.73330601,214.9,214.77,2.82]
[1736065154390,2.3271,214.89,214.77,2.82]
[1736065154579,11.40620601,214.9,214.77,2.82]
[1736065154982,13.73320601,214.9,214.77,2.82]
[1736065155184,13.73320601,214.9,214.82,2.3277]
[1736065155383,11.40620601,214.9,214.82,2.3277]
[1736065155594,3.49090929,214.89,214.83,2.3277]
[1736065155794,2.3271,214.89,214.83,2.3277]
[1736065156092,11.40620601,214.9,214.83,2.3277]
[1736065156292,1.1637932,214.89,214.81,2.3278]
[1736065156494,11.40620601,214.9,214.81,2.3278]
[1736065156696,1.16379993,214.89,214.81,2.3278]
[1736065156888,2.3272,214.88,214.79,2.3281]
[1736065157083,11.40620601,214.9,214.78,2.82]
[1736065157289,11.40620601,214.87,214.78,2.82]
[1736065157693,11.40620601,214.87,214.78,5.1482]
[1736065158601,1.16382833,214.86,214.78,5.1482]
[1736065158897,11.40620601,214.87,214.78,5.1482]
[1736065159290,2.3275,214.85,214.78,5.1482]
[1736065163203,2.3274,214.86,214.8,2.328]
[1736065163400,11.40620601,214.9,214.78,2.82]
[1736065163600,1.16384596,214.89,214.78,2.82]
[1736065163801,1.16384596,214.88,214.78,2.82]
[1736065164000,1.16384596,214.87,214.78,2.82]
[1736065164201,1.16384596,214.86,214.78,2.82]
[1736065164401,2.3273,214.87,214.81,2.3279]
[1736065164602,1.16380764,214.86,214.81,2.3279]
[1736065164804,2.3273,214.87,214.81,2.3279]
[1736065165305,1.16380764,214.86,214.81,2.3279]
[1736065165602,2.3273,214.87,214.81,2.3279]
[1736065165793,1.16381252,214.86,214.81,2.3279]
[1736065166000,5.7633,214.93,214.78,14.22620601]
[1736065166195,5.7633,214.93,214.81,11.40620601]
[1736065166196,1.16375569,214.92,214.81,11.40620601]
[1736065166399,1.16375569,214.91,214.84,2.3275]
[1736065166600,1.16375569,214.9,214.82,1.4237]
[1736065166801,1.16375569,214.89,214.83,4.2161]
[1736065167002,5.1467,214.93,214.83,4.2161]
[1736065167199,1.1636601,214.92,214.83,4.2161]
[1736065167404,1.1636601,214.91,214.83,4.2161]
[1736065167604,1.1636601,214.9,214.86,2.3274]
[1736065167807,2.3267,214.93,214.86,2.3274]
[1736065168310,2.3267,214.93,214.83,4.2161]
[1736065168311,1.16360596,214.92,214.85,2.3274]
[1736065168512,1.16360596,214.91,214.85,2.3274]
[1736065168699,1.16360596,214.9,214.85,2.3274]
[1736065168905,2.82,214.95,214.85,2.3274]
[1736065169106,1.16360224,214.94,214.85,2.3274]
[1736065169302,1.16360224,214.93,214.83,4.2161]
[1736065169508,3.49040224,214.92,214.86,2.3274]
[1736065169709,1.16360224,214.91,214.86,2.3274]
[1736065170510,1.16360224,214.91,214.83,4.2161]
[1736065170815,2.9969,215.0,214.87,11.40620601]
[1736065171009,2.9969,215.0,214.93,2.3266]
[1736065171010,1.16346468,214.98,214.93,2.3266]
[1736065171308,1.16335354,214.97,214.88,2.82]
[1736065171515,1.16335354,214.96,214.88,2.82]
[1736065171813,5.1459,215.0,214.88,2.82]
[1736065172008,1.16328308,214.99,214.88,2.82]
[1736065172208,1.16328308,214.98,214.88,2.82]
[1736065172411,1.16328308,214.97,214.88,2.82]
[1736065172709,1.16328308,214.96,214.88,2.82]
[1736065172913,2.326,214.99,214.88,2.82]
[1736065173213,1.16328902,214.98,214.88,2.82]
[1736065173411,1.16328902,214.97,214.88,2.82]
[1736065173714,1.16328902,214.96,214.88,2.82]
[1736065173916,2.326,214.99,214.88,2.82]
[1736065174106,1.16328441,214.98,214.88,2.82]
[1736065174306,1.16328441,214.97,214.88,2.82]
[1736065174502,1.16328441,214.96,214.92,2.3267]
[1736065174714,2.326,214.99,214.92,2.3267]
[1736065174910,1.16328881,214.98,214.92,2.3267]
[1736065175212,1.16328881,214.97,214.92,2.3267]
[1736065175411,2.326,214.99,214.92,2.3267]
[1736065175412,1.16328881,214.96,214.92,2.3267]
[1736065175712,1.16328315,214.95,214.94,2.3265]
[1736065175912,14.22620601,215.04,214.93,11.40620601]
[1736065176112,1.16319055,215.03,214.93,14.22620601]
[1736065176308,14.22620601,215.04,214.93,14.22620601]
[1736065176309,1.16319055,215.02,214.93,14.22620601]
[1736065176611,1.16319055,215.01,214.93,14.22620601]
[1736065176812,1.16319055,215.0,214.93,14.22620601]
[1736065177111,4.1709,215.1,214.93,14.22620601]
[1736065177112,1.16319055,214.99,214.98,2.3261]
[1736065177312,2.3254,215.05,214.98,2.3261]
[1736065177513,1.16312748,215.04,214.98,2.3261]
[1736065177715,1.16312748,215.03,214.93,11.40620601]
[1736065177914,1.16312748,215.02,214.94,2.82]
[1736065178114,1.16312748,215.01,214.94,2.82]
[1736065178409,1.16312748,215.0,214.94,2.82]
[1736065178709,1.16312748,214.99,214.94,2.82]
[1736065178914,2.3254,215.05,214.98,2.3261]
[1736065179110,1.16312194,215.04,214.98,2.3261]
[1736065179312,1.16312194,215.03,214.98,2.3261]
[1736065179615,1.16312194,215.02,214.98,2.3261]
[1736065179914,1.16312194,215.01,214.98,2.3261]
[1736065180113,2.3254,215.05,214.98,2.3261]
[1736065180114,1.16312194,215.0,214.98,2.3261]
[1736065180412,2.3254,215.05,214.98,2.3261]
[1736065180613,1.16313169,215.04,214.98,2.3261]
[1736065180816,1.16313169,215.03,214.98,2.3261]
[1736065181113,1.16312657,215.02,214.98,2.3261]
[1736065181419,1.16312657,215.01,214.98,2.3261]
[1736065181613,1.16312657,215.0,214.98,2.3261]
[1736065181914,1.16312657,214.99,214.98,2.3261]
[1736065182615,2.3254,215.05,214.98,2.3261]
[1736065182822,1.16312034,215.04,214.98,2.3261]